[Event "XII Cracow ICC-A 2024"]
[Site "Krakow"]
[Date "2024.06.27"]
[Round "7.12"]
[White "Petrovic, Aleksa"]
[Black "Aarav Dengla"]
[Result "0-1"]
[ECO "D11"]
[WhiteElo "2303"]
[BlackElo "2395"]
[Annotator "RC"]
[PlyCount "106"]
[EventDate "2024.06.20"]
[EventType "swiss"]
[EventCountry "POL"]
[SourceTitle "playchess.com"]
[Source "ChessBase"]
[SourceQuality "1"]
[TimeControl "40/5400+30:1800+30"]

1. d4 {[%emt 0:02:01]} d5 {[%emt 0:00:06]} 2. c4 {[%emt 0:00:12]} c6 {[%emt 0:00:08]} 3. Nf3 {[%emt 0:00:34]} Nf6 {[%emt 0:00:08]} 4. e3 {[%emt 0:01:24]} Bg4 {[%emt 0:00:06]} 5. cxd5 {[%emt 0:02:14]} cxd5 {[%emt 0:00:35]} 6. Qa4+ {[%emt 0:01:14]} Bd7 {[%emt 0:16:02]} 7. Qb3 {[%emt 0:00:45]} Nc6 {[%emt 0:05:31]} 8. Ne5 {[%emt 0:10:12]} e6 {[%emt 0:17:47]} 9. Nxd7 {[%emt 0:02:44]} Qxd7 {[%emt 0:00:27]} 10. Nc3 {[%emt 0:00:34]} Bd6 {[%emt 0:03:35]} 11. Bd3 {[%emt 0:00:45]} e5 {[%emt 0:04:25]} 12. dxe5 {[%emt 0:03:22]} Bxe5 {[%emt 0:00:07]} 13. O-O {[%emt 0:05:48]} O-O {[%emt 0:00:40]} 14. Rd1 {[%emt 0:04:50]} Rfd8 {[%emt 0:05:26]} 15. Bd2 {[%emt 0:10:27]} Qe7 {[%emt 0:21:30]} 16. h3 {[%emt 0:07:42]} d4 {[%emt 0:03:15]} 17. Ne2 {[%emt 0:00:44]} dxe3 {[%emt 0:02:16]} 18. Bxe3 {[%emt 0:00:11]} Qb4 {[%emt 0:01:27]} 19. Nc3 {[%emt 0:11:24]} Qxb3 {[%emt 0:03:24]} 20. axb3 {[%emt 0:00:02]} a6 {[%emt 0:02:33]} 21. Bb6 {[%emt 0:01:53]} Rd7 {[%emt 0:02:42]} 22. g4 {[%emt 0:10:18]} g6 {[%emt 0:00:25]} 23. Bc4 {[%emt 0:06:21]} Bd4 {[%emt 0:02:39]} 24. Bxd4 {[%emt 0:03:47]} Nxd4 {[%emt 0:02:35]} 25. g5 {[%emt 0:05:14]} Nf3+ {[%emt 0:00:38]} 26. Kg2 {[%emt 0:00:09]} Nxg5 {[%emt 0:02:45]} 27. Rxd7 {[%emt 0:02:21]} Nxd7 {[%emt 0:00:02]} 28. Re1 {[%emt 0:02:23]} Nb6 {[%emt 0:00:43]} 29. Re7 {[%emt 0:01:14]} Nxc4 {[%emt 0:00:27]} 30. bxc4 {[%emt 0:00:03]} Rc8 {[%emt 0:00:36]} 31. b3 {[%emt 0:03:11]} b5 {[%emt 0:00:59]} 32. h4 {[%emt 0:01:41]} Ne6 {[%emt 0:00:22]} 33. Ne4 {[%emt 0:00:34]} bxc4 {[%emt 0:00:18]} 34. bxc4 {[%emt 0:00:30]} Rxc4 {[%emt 0:00:22]} 35. Nd6 {[%emt 0:00:16]} Rc7 {[%emt 0:01:37]} 36. Re8+ {[%emt 0:00:04]} Nf8 {[%emt 0:00:11]} 37. Ra8 {[%emt 0:00:59]} Rc6 {[%emt 0:00:12]} 38. Ne4 {[%emt 0:00:42]} Kg7 {[%emt 0:00:32]} 39. Ng5 {[%emt 0:00:19]} h6 {[%emt 0:01:00]} 40. Nf3 {[%emt 0:00:17]} Nd7 {[%emt 0:00:24]} 41. Rd8 {[%emt 0:02:20]} Rc7 {[%emt 0:02:51]} 42. Ra8 {[%emt 0:00:44]} Rc6 {[%emt 0:00:46]} 43. Rd8 {[%emt 0:00:06]} Nb6 {[%emt 0:01:17]} 44. Ne5 {[%emt 0:01:32]} Rc5 {[%emt 0:01:42]} 45. f4 {[%emt 0:00:52]} Nc4 {[%emt 0:00:27]} 46. Nd3 {[%emt 0:00:56]} Rd5 {[%emt 0:02:46]} 47. Rxd5 {[%emt 0:00:06]} Ne3+ {[%emt 0:00:02]} 48. Kf3 {[%emt 0:00:06]} Nxd5 {[%emt 0:00:02]} 49. Ke4 {[%emt 0:00:07]} Ne7 {[%emt 0:00:37]} 50. Nc5 {[%emt 0:00:28]} a5 {[%emt 0:00:07]} 51. h5 {[%emt 0:01:11]} gxh5 {[%emt 0:00:49]} 52. f5 {[%emt 0:00:42]} h4 {[%emt 0:00:11]} 53. Ke5 {[%emt 0:00:57]} Nxf5 {[%emt 0:00:46]} 0-1

[Event "XII Cracow ICC-A 2024"]
[Site "Krakow"]
[Date "2024.06.27"]
[Round "7.13"]
[White "Rudolf, Michal"]
[Black "Cieslak, Patryk"]
[Result "1/2-1/2"]
[ECO "D35"]
[WhiteElo "2287"]
[BlackElo "2358"]
[Annotator "RC"]
[PlyCount "112"]
[EventDate "2024.06.20"]
[EventType "swiss"]
[EventCountry "POL"]
[SourceTitle "playchess.com"]
[Source "ChessBase"]
[SourceQuality "1"]
[TimeControl "40/5400+30:1800+30"]

1. d4 {[%emt 0:00:04]} d5 {[%emt 0:00:05]} 2. c4 {[%emt 0:00:23]} e6 {[%emt 0:00:04]} 3. Nc3 {[%emt 0:00:10]} Nf6 {[%emt 0:00:32]} 4. cxd5 {[%emt 0:00:06]} exd5 {[%emt 0:00:02]} 5. Bg5 {[%emt 0:00:13]} Bb4 {[%emt 0:00:53]} 6. Qb3 {[%emt 0:05:03]} c5 {[%emt 0:05:15]} 7. dxc5 {[%emt 0:00:50]} Nc6 {[%emt 0:08:47]} 8. e3 {[%emt 0:06:00]} d4 {[%emt 0:16:10]} 9. O-O-O {[%emt 0:09:42]} Bxc3 {[%emt 0:18:46]} 10. bxc3 {[%emt 0:00:59]} d3 {[%emt 0:02:29]} 11. Bxd3 {[%emt 0:05:20]} Qa5 {[%emt 0:03:29]} 12. Bxf6 {[%emt 0:06:37]} gxf6 {[%emt 0:00:06]} 13. Ne2 {[%emt 0:00:17]} O-O {[%emt 0:02:27]} 14. Nd4 {[%emt 0:06:17]} Qxc5 {[%emt 0:01:32]} 15. Nxc6 {[%emt 0:01:34]} bxc6 {[%emt 0:04:32]} 16. Qb4 {[%emt 0:01:41]} Qe5 {[%emt 0:03:19]} 17. Kc2 {[%emt 0:07:04]} Be6 {[%emt 0:04:59]} 18. Qh4 {[%emt 0:01:54]} Rfb8 {[%emt 0:02:09]} 19. Qg3+ {[%emt 0:11:06]} Qxg3 {[%emt 0:00:47]} 20. hxg3 {[%emt 0:00:04]} Bxa2 {[%emt 0:00:16]} 21. Ra1 {[%emt 0:00:32]} Bb3+ {[%emt 0:01:16]} 22. Kc1 {[%emt 0:00:12]} a5 {[%emt 0:04:23]} 23. Bxh7+ {[%emt 0:00:10]} Kg7 {[%emt 0:00:05]} 24. Be4 {[%emt 0:00:27]} a4 {[%emt 0:01:37]} 25. Bc2 {[%emt 0:05:58]} a3 {[%emt 0:02:15]} 26. Rb1 {[%emt 0:18:35]} a2 {[%emt 0:01:03]} 27. Ra1 {[%emt 0:00:04]} Bd5 {[%emt 0:01:42]} 28. e4 {[%emt 0:01:58]} Be6 {[%emt 0:03:57]} 29. Rh5 {[%emt 0:03:54]} Ra3 {[%emt 0:00:16]} 30. Rc5 {[%emt 0:00:26]} Ra6 {[%emt 0:01:05]} 31. Bd3 {[%emt 0:03:32]} Rab6 {[%emt 0:00:45]} 32. c4 {[%emt 0:00:15]} Ra6 {[%emt 0:01:09]} 33. Kc2 {[%emt 0:00:40]} Ra3 {[%emt 0:03:20]} 34. Be2 {[%emt 0:00:26]} Rbb3 {[%emt 0:01:11]} 35. Rxc6 {[%emt 0:00:49]} Rb7 {[%emt 0:02:55]} 36. Rc5 {[%emt 0:00:28]} Bd7 {[%emt 0:01:28]} 37. Kc1 {[%emt 0:01:08]} Ba4 {[%emt 0:00:50]} 38. Ra5 {[%emt 0:00:41]} Rc3+ {[%emt 0:02:19]} 39. Kd2 {[%emt 0:00:04]} Rc2+ {[%emt 0:00:30]} 40. Kd3 {[%emt 0:00:48]} Bb3 {[%emt 0:01:08]} 41. Bd1 {[%emt 0:32:47]} Rxf2 {[%emt 0:05:00]} 42. Bxb3 {[%emt 0:00:00]} Rxb3+ {[%emt 0:00:07]} 43. Kd4 {[%emt 0:00:00]} Rbb2 {[%emt 0:01:54]} 44. Kd5 {[%emt 0:00:00]} Rxg2 {[%emt 0:01:54]} 45. c5 {[%emt 0:00:00]} Rbc2 {[%emt 0:02:53]} 46. Kd6 {[%emt 0:00:00]} Rgd2+ {[%emt 0:02:39]} 47. Kc7 {[%emt 0:00:00]} Kf8 {[%emt 0:03:07]} 48. c6 {[%emt 0:00:00]} Ke7 {[%emt 0:00:35]} 49. Rd5 {[%emt 0:00:00]} Rb2 {[%emt 0:01:22]} 50. g4 {[%emt 0:00:00]} Ke6 {[%emt 0:01:44]} 51. Rd8 {[%emt 0:00:00]} Ke7 {[%emt 0:00:21]} 52. Rd5 {[%emt 0:00:00]} Ke6 {[%emt 0:00:05]} 53. Rd8 {[%emt 0:00:00]} Rxd8 {[%emt 0:01:41]} 54. Kxd8 {[%emt 0:00:00]} Rb8+ {[%emt 0:00:04]} 55. Kc7 {[%emt 0:00:00]} Rb2 {[%emt 0:00:08]} 56. Kd8 {[%emt 0:00:00]} Rb8+ {[%emt 0:02:40]} 1/2-1/2

[Event "XII Cracow ICC-A 2024"]
[Site "Krakow"]
[Date "2024.06.27"]
[Round "7.14"]
[White "Turski, Bartlomiej"]
[Black "Lohia, Sohum"]
[Result "1/2-1/2"]
[ECO "C78"]
[WhiteElo "2334"]
[BlackElo "2270"]
[Annotator "RC"]
[PlyCount "69"]
[EventDate "2024.06.20"]
[EventType "swiss"]
[EventCountry "POL"]
[SourceTitle "playchess.com"]
[Source "ChessBase"]
[SourceQuality "1"]
[TimeControl "40/5400+30:1800+30"]

1. e4 {[%emt 0:00:27]} e5 {[%emt 0:00:08]} 2. Nf3 {[%emt 0:00:05]} Nc6 {[%emt 0:00:08]} 3. Bb5 {[%emt 0:00:06]} a6 {[%emt 0:00:14]} 4. Ba4 {[%emt 0:00:06]} Nf6 {[%emt 0:00:12]} 5. O-O {[%emt 0:00:09]} b5 {[%emt 0:00:06]} 6. Bb3 {[%emt 0:00:05]} Bc5 {[%emt 0:00:09]} 7. c3 {[%emt 0:00:09]} d6 {[%emt 0:00:12]} 8. d4 {[%emt 0:00:11]} Bb6 {[%emt 0:00:11]} 9. a4 {[%emt 0:00:08]} Rb8 {[%emt 0:00:29]} 10. a5 {[%emt 0:00:08]} Ba7 {[%emt 0:00:10]} 11. h3 {[%emt 0:00:09]} Bb7 {[%emt 0:00:21]} 12. Be3 {[%emt 0:04:03]} Nxe4 {[%emt 0:00:37]} 13. Re1 {[%emt 0:22:01]} Ne7 {[%emt 0:00:37]} 14. dxe5 {[%emt 0:02:19]} Bxe3 {[%emt 0:00:37]} 15. Rxe3 {[%emt 0:00:53]} Nf5 {[%emt 0:23:51]} 16. Re1 {[%emt 0:03:24]} O-O {[%emt 0:05:41]} 17. Bc2 {[%emt 0:09:58]} Ng5 {[%emt 0:01:37]} 18. Nbd2 {[%emt 0:11:00]} Nxf3+ {[%emt 0:01:05]} 19. Nxf3 {[%emt 0:02:15]} Nh4 {[%emt 0:01:14]} 20. Nxh4 {[%emt 0:01:05]} Qxh4 {[%emt 0:00:11]} 21. exd6 {[%emt 0:03:37]} Rbd8 {[%emt 0:01:50]} 22. Qg4 {[%emt 0:02:32]} Qxg4 {[%emt 0:03:50]} 23. hxg4 {[%emt 0:02:10]} Rxd6 {[%emt 0:01:21]} 24. Rad1 {[%emt 0:00:36]} Rxd1 {[%emt 0:01:14]} 25. Rxd1 {[%emt 0:01:29]} Bc8 {[%emt 0:01:30]} 26. f3 {[%emt 0:01:48]} Be6 {[%emt 0:03:10]} 27. Be4 {[%emt 0:01:44]} h6 {[%emt 0:07:41]} 28. Bb7 {[%emt 0:01:52]} Bc8 {[%emt 0:00:11]} 29. Bc6 {[%emt 0:00:18]} Be6 {[%emt 0:00:19]} 30. Kf2 {[%emt 0:02:20]} Rb8 {[%emt 0:00:30]} 31. b4 {[%emt 0:00:59]} Kf8 {[%emt 0:00:27]} 32. Ke3 {[%emt 0:07:01]} Ke7 {[%emt 0:00:16]} 33. Rd4 {[%emt 0:01:33]} Rf8 {[%emt 0:01:44]} 34. g3 {[%emt 0:06:35]} Rb8 {[%emt 0:00:24]} 35. Rd2 {[%emt 0:02:59]} 1/2-1/2

[Event "XII Cracow ICC-A 2024"]
[Site "Krakow"]
[Date "2024.06.27"]
[Round "7.15"]
[White "Janeczko, Jakub"]
[Black "Nguyen, Piotr"]
[Result "1-0"]
[ECO "B12"]
[WhiteElo "2293"]
[BlackElo "2426"]
[Annotator "RC"]
[PlyCount "50"]
[EventDate "2024.06.20"]
[EventType "swiss"]
[EventCountry "POL"]
[SourceTitle "playchess.com"]
[Source "ChessBase"]
[SourceQuality "1"]
[TimeControl "40/5400+30:1800+30"]

1. e4 {[%emt 0:04:49]} c6 {[%emt 0:00:06]} 2. d4 {[%emt 0:00:07]} d5 {[%emt 0:00:05]} 3. f3 {[%emt 0:00:04]} Qb6 {[%emt 0:00:20]} 4. Nc3 {[%emt 0:00:30]} dxe4 {[%emt 0:00:22]} 5. fxe4 {[%emt 0:00:10]} e5 {[%emt 0:00:10]} 6. Nf3 {[%emt 0:00:05]} exd4 {[%emt 0:00:12]} 7. Nxd4 {[%emt 0:00:05]} h5 {[%emt 0:00:27]} 8. e5 {[%emt 0:13:56]} Bg4 {[%emt 0:39:45]} 9. Be2 {[%emt 0:05:06]} Na6 {[%emt 0:13:10]} 10. Bxg4 {[%emt 0:07:18]} hxg4 {[%emt 0:04:26]} 11. Qxg4 {[%emt 0:01:32]} Nb4 {[%emt 0:06:10]} 12. Be3 {[%emt 0:15:10]} c5 {[%emt 0:00:36]} 13. Ndb5 {[%emt 0:09:12]} Nxc2+ {[%emt 0:00:55]} 14. Kf2 {[%emt 0:01:25]} Nxe3 {[%emt 0:00:32]} 15. Kxe3 {[%emt 0:00:35]} Nh6 {[%emt 0:01:30]} 16. Qh3 {[%emt 0:03:45]} Rd8 {[%emt 0:14:21]} 17. Rad1 {[%emt 0:00:53]} Be7 {[%emt 0:02:11]} 18. Rxd8+ {[%emt 0:06:01]} Bxd8 {[%emt 0:07:18]} 19. Nd6+ {[%emt 0:00:02]} Kf8 {[%emt 0:00:04]} 20. Qd7 {[%emt 0:01:24]} g6 {[%emt 0:00:14]} 21. Rf1 {[%emt 0:06:39]} Qc7 {[%emt 0:00:05]} 22. Qe8+ {[%emt 0:10:07]} Kg7 {[%emt 0:00:04]} 23. Nd5 {[%emt 0:00:04]} Qc6 {[%emt 0:03:47]} 24. Rf3 f5 25. Rxf5 {[%emt 0:01:29]} Nf7 {[%emt 0:00:32]} 1-0

[Event "XII Cracow ICC-A 2024"]
[Site "Krakow"]
[Date "2024.06.27"]
[Round "7.16"]
[White "Chatalbashev, Boris"]
[Black "Arnav Maheshwari"]
[Result "1-0"]
[ECO "D94"]
[WhiteElo "2483"]
[BlackElo "2290"]
[Annotator "TA"]
[PlyCount "111"]
[EventDate "2024.06.20"]
[EventType "swiss"]
[EventCountry "POL"]
[SourceTitle "playchess.com"]
[Source "ChessBase"]
[SourceQuality "1"]
[TimeControl "40/5400+30:1800+30"]

{[%evp 21,111,50,67,62,56,75,69,69,63,63,58,34,53,47,64,59,55,34,40,25,15,28,118,138,118,127,125,147,330,332,332,99,141,137,143,131,126,126,135,129,119,62,66,60,124,109,142,140,120,120,176,177,150,119,131,91,99,106,99,83,166,170,169,181,172,161,164,162,171,170,1329,1241,1201,1153,29971,29973,29973,29973,29973,29974,6131,6079,1713,1741,1497,1481,29979,29981,29981,29982,29981,29983]} 1. c4 {[%emt 0:00:03]} c6 {[%emt 0:01:33]} 2. Nf3 {[%emt 0:00:13]} d5 {[%emt 0:00:15]} 3. e3 {[%emt 0:00:06]} Nf6 {[%emt 0:01:13]} 4. Nc3 {[%emt 0:00:07]} g6 {[%emt 0:01:38]} 5. d4 {[%emt 0:01:28]} Bg7 {[%emt 0:00:11]} 6. Bd3 {[%emt 0:00:06]} O-O {[%emt 0:01:54]} 7. O-O {[%emt 0:00:05]} Bg4 {[%emt 0:10:46]} 8. h3 {[%emt 0:00:38]} Bxf3 {[%emt 0:00:11]} 9. Qxf3 {[%emt 0:00:06]} dxc4 {[%emt 0:02:45]} 10. Bxc4 {[%emt 0:00:06]} Nbd7 {[%emt 0:00:20]} 11. Rd1 {[%emt 0:00:07]} Qc7 {[%emt 0:09:48]} 12. e4 {[%emt 0:01:04]} e5 {[%emt 0:01:27]} 13. d5 {[%emt 0:00:08]} Nb6 {[%emt 0:00:48]} 14. Bb3 {[%emt 0:01:56] White is slightly better.} cxd5 {[%emt 0:08:39]} 15. exd5 {[%emt 0:04:18]} Ne8 {[%emt 0:00:34]} 16. Nb5 {[%emt 0:14:43] Wards off Nd6} Qd7 {[%emt 0:01:24]} 17. a4 {[%emt 0:00:05][%cal Ba2a4,Ba4a5,Ba5a6][%mdl 32]} Nd6 {[%emt 0:04:58]} 18. Nxd6 {[%emt 0:07:50]} Qxd6 {[%emt 0:00:12]} 19. a5 {[%emt 0:00:15]} Nd7 {[%emt 0:02:59]} 20. a6 {[%emt 0:00:07] Black is weak on the light squares} b6 {[%emt 0:02:55]} 21. Ba4 $36 {[%emt 0:04:03][%mdl 2048] Black is under pressure.} f5 {[%emt 0:03:52]} (21... Nc5 $11) 22. Bxd7 $1 $16 {[%emt 0:06:24]} Qxd7 {[%emt 0:00:10]} 23. d6 {[%emt 0:00:06]} f4 {[%emt 0:10:24]} 24. Bd2 {[%emt 0:04:47] aiming for Rac1.} Qxd6 $2 {[%emt 0:06:44]} (24... Rad8 $16 25. Bb4 Qe6) 25. Qb3+ $1 $18 {[%emt 0:00:20]} Rf7 {[%emt 0:00:24] [#]} 26. Bxf4 $2 {[%emt 0:04:09]} Qf8 {[%emt 0:02:18]} 27. Be3 {[%emt 0:06:52]} Bh6 {[%emt 0:01:20]} 28. Rd7 {[%emt 0:04:40] Hoping for Bxh6.} Bxe3 {[%emt 0:02:02]} 29. fxe3 {[%emt 0:00:08] Intending Rf1 and mate.} Kg7 {[%emt 0:00:07]} 30. Rad1 {[%emt 0:01:47] And now Rb7 would win.} Re8 {[%emt 0:12:39]} 31. Qc4 {[%emt 0:14:10]} (31. Qb5 $1 $16) 31... Ree7 $14 {[%emt 0:04:11]} 32. R7d5 {[%emt 0:03:02]} h6 {[%emt 0:03:00]} (32... Qg8 $14) 33. Qc3 {[%emt 0:03:06]} Qb8 {[%emt 0:01:11]} 34. Rd6 {[%emt 0:03:09] Strongly threatening Qc6.} Kh7 {[%emt 0:01:59]} 35. Qc6 {[%emt 0:00:09]} Qg8 {[%emt 0:00:49]} 36. Rd8 $1 {[%emt 0:06:11][%cal Bd6d8,Bd8b8,Bb8b7][%mdl 32]} Qg7 {[%emt 0:00:07]} 37. Qe4 {[%emt 0:02:45]} Qf6 {[%emt 0:01:31]} 38. Rb8 {[%emt 0:02:38]} Rf8 {[%emt 0:01:28]} 39. Rb7 {[%emt 0:05:44]} (39. Rxf8 {simplifies} Qxf8 40. b4 Qe8 41. Rd6) 39... Rff7 {[%emt 0:00:11]} 40. b4 {[%emt 0:01:14][%cal Bb2b4,Bb4b5][%mdl 32] Active counter play!} Qf2+ {[%emt 0:00:56]} (40... h5 $16 {was worth a try.}) 41. Kh2 $18 {[%emt 0:30:23]} Qf6 {[%emt 0:06:22]} 42. b5 {[%emt 0:00:00]} h5 {[%emt 0:01:09] [#]} 43. Rc1 $1 {[%emt 0:00:00][%cal Bd1c1,Bc1c6,Bc6f6][%mdl 32]} Qg5 {[%emt 0:09:25] [#]} 44. h4 $1 {[%emt 0:00:00]} Qf6 {[%emt 0:00:12]} 45. Rc6 {[%emt 0:00:00]} Qg7 {[%emt 0:00:14]} (45... Qf5 46. Qxf5 gxf5) 46. g4 {[%emt 0:00:00][%cal Bg2g4,Bg4h5][%mdl 32]} Qh6 {[%emt 0:06:08] [#]} 47. Rf6 $3 {[%emt 0:00:00][%mdl 512]} Qg7 {[%emt 0:06:01]} (47... Rxb7 48. axb7) 48. Rxf7 {[%emt 0:00:00]} Qxf7 {[%emt 0:00:10]} 49. Rxe7 {[%emt 0:00:00]} Qxe7 {[%emt 0:00:06]} 50. gxh5 {[%emt 0:00:00] KQ-KQ} Qf8 {[%emt 0:01:32]} 51. Kg2 {[%emt 0:00:00]} Kh8 {[%emt 0:03:25]} 52. Qxe5+ {[%emt 0:00:00]} Kh7 {[%emt 0:00:14]} 53. Qe4 {[%emt 0:00:00]} Qa3 {[%emt 0:00:55]} 54. Qxg6+ {[%emt 0:00:00] White mates.} Kh8 {[%emt 0:00:04]} 55. Qf6+ {[%emt 0:00:00]} Kh7 {[%emt 0:00:46]} 56. h6 {[%emt 0:00:00] Weighted Error Value: White=0.12 (very precise) /Black=0.43.  Loses game:     	---       	Black=1      Missed win:     	White=1     	---        Mistake:       	White=1     	Black=4      Inaccurate:     	White=1     	Black=2      OK:         	White=12    	Black=15     Best:        	White=5     	Black=4      Strong:       	White=3     	---} 1-0

[Event "XII Cracow ICC-A 2024"]
[Site "Krakow"]
[Date "2024.06.27"]
[Round "7.17"]
[White "Aakash Sharadchandra, Dalvi"]
[Black "Zwardon, Vojtech"]
[Result "1/2-1/2"]
[ECO "D38"]
[WhiteElo "2291"]
[BlackElo "2458"]
[Annotator "TA"]
[PlyCount "89"]
[EventDate "2024.06.20"]
[EventType "swiss"]
[EventCountry "POL"]
[SourceTitle "playchess.com"]
[Source "ChessBase"]
[SourceQuality "1"]
[TimeControl "40/5400+30:1800+30"]

{[%evp 14,89,29,27,30,10,16,14,50,51,58,58,52,30,63,62,64,42,65,36,64,47,54,42,58,52,59,31,39,56,47,-9,-25,-35,-25,-14,0,-19,-18,-45,-44,-40,-33,-31,-24,-34,-3,-183,-174,-282,-18,-14,-19,-21,0,-22,0,0,0,-140,0,0,0,-239,0,0,0,0,0,0,0,0,0,0,0,0,0,0]} 1. d4 {[%emt 0:00:02]} Nf6 {[%emt 0:00:00]} 2. c4 {[%emt 0:00:08]} e6 {[%emt 0:00:01]} 3. Nf3 {[%emt 0:00:07]} d5 {[%emt 0:00:03]} 4. Nc3 {[%emt 0:00:07]} Bb4 {[%emt 0:00:02]} 5. Bg5 {[%emt 0:00:17]} h6 {[%emt 0:00:03]} 6. Bxf6 {[%emt 0:00:07]} Qxf6 {[%emt 0:00:04]} 7. Qa4+ {[%emt 0:00:06]} Nc6 {[%emt 0:00:06]} 8. e3 {[%emt 0:00:04]} O-O {[%emt 0:00:48]} 9. Rc1 {[%emt 0:00:03]} Rd8 {[%emt 0:03:20]} 10. Be2 {[%emt 0:04:04]} a6 {[%emt 0:01:28]} 11. a3 {[%emt 0:02:26]} Bf8 {[%emt 0:01:45]} 12. O-O {[%emt 0:01:32]} g5 {[%emt 0:02:11]} 13. b4 {[%emt 0:07:43][%cal Bb2b4,Bb4b5][%mdl 32]} Bd7 {[%emt 0:02:09][%cal Oc6d4]} 14. Qb3 {[%emt 0:02:31]} (14. cxd5 $6 Nxd4 15. Qd1 Nxf3+ 16. Bxf3 c6 17. dxc6 Bxc6 $11) 14... dxc4 {[%emt 0:01:00]} 15. Bxc4 {[%emt 0:00:40]} g4 {[%emt 0:01:54]} 16. Nd2 {[%emt 0:00:48] Nce4 is the strong threat.} Qg7 {[%emt 0:01:44]} 17. Rfd1 {[%emt 0:09:22]} a5 {[%emt 0:01:05]} 18. b5 {[%emt 0:00:50]} a4 {[%emt 0:01:02]} 19. Nxa4 {[%emt 0:05:45]} Na5 {[%emt 0:00:07]} 20. Qb2 {[%emt 0:00:12]} Nxc4 {[%emt 0:00:04]} 21. Rxc4 {[%emt 0:00:07][%cal Oa4c5]} Ra5 {[%emt 0:02:37]} 22. Nc5 {[%emt 0:03:46]} ({White should try} 22. Nc3 $1 $14 Bxa3 23. Qb3) 22... Rxb5 $11 {[%emt 0:02:18]} 23. Rb4 {[%emt 0:04:09]} Rxb4 {[%emt 0:02:23]} 24. axb4 {[%emt 0:00:07]} Bc6 {[%emt 0:00:17]} 25. Nd3 {[%emt 0:12:38]} Bb5 $36 {[%emt 0:01:07][%mdl 2048] Black has good play.} 26. Ne5 {[%emt 0:02:46]} f6 {[%emt 0:00:36]} 27. Nec4 {[%emt 0:00:27] [#]} e5 $1 {[%emt 0:01:46]} 28. Rc1 {[%emt 0:05:42]} (28. Na3 Be8) 28... exd4 {[%emt 0:00:51]} 29. exd4 {[%emt 0:00:08]} Qd7 {[%emt 0:06:56]} 30. d5 $2 {[%emt 0:06:45]} Qxd5 $19 {[%emt 0:00:34]} 31. Qxf6 {[%emt 0:00:27]} (31. Qc2 {keeps fighting.}) 31... Bc6 $2 {[%emt 0:05:39]} (31... Bxb4 32. Qg6+ Kh8 33. Qxh6+ Kg8 34. Qg6+ Kf8 35. Qf6+ Ke8 36. Re1+ (36. Rb1 Bxc4 37. Qg6+ Qf7 $17) 36... Kd7 37. Re5 Bxc4 38. Rxd5+ Bxd5 39. Qd4 Bxd2 40. Qxd5+ (40. Qxd2 c6 $18) 40... Kc8 41. Qe6+ Kb8 42. Qxg4 $18) (31... Bg7 $1 $19 {[%cal Rg7f6]} 32. Qf4 Qc6 33. Qxg4 Rxd2 34. Qc8+ Bf8 35. Qg4+ Kh8) 32. Qg6+ $11 {[%emt 0:06:01]} Kh8 {[%emt 0:11:02][%csl Gc6][%cal Rd5g2]} 33. Qxg4 {[%emt 0:01:33]} h5 {[%emt 0:00:07]} (33... Be7 {simplifies} 34. Qg3 Qg5 35. f4 Qxg3 36. hxg3 Bxb4 37. Nf3 Bd5) 34. Qh3 {[%emt 0:05:26]} Bh6 {[%emt 0:00:43][%cal Od8g8][%mdl 1024] aiming for ...Rg8! Black has compensation. A strong pair of Bishops.} (34... Qg5 {simplifies} 35. b5 Bxb5 36. Re1 Bxc4 37. Nxc4 b5) 35. Re1 {[%emt 0:08:37]} Rg8 {[%emt 0:04:48]} 36. f3 {[%emt 0:01:36] [#]} b5 {[%emt 0:02:47]} ({Inferior is} 36... Bxd2 37. Nxd2 Rg5 (37... Qxd2 38. Qxh5+ Kg7 39. Re7+ Kf6 40. Qf7+ Kg5 41. Re5+ Kh6 42. Rh5#) 38. Ne4 Qd4+ 39. Kh1 Bxe4 40. fxe4 $14) ({Black should play} 36... Qd4+ $1 $17 37. Kh1 Re8 (37... Bxd2 38. Qxh5+ Kg7 39. Re7+ Kf6 40. Rf7+ Ke6 41. Qf5#)) 37. Qe6 $1 {[%emt 0:07:56][%cal Re6h6]} Qd4+ {[%emt 0:05:18]} 38. Kh1 $2 {[%emt 0:00:40] [#]} (38. Ne3 $11 {and White is okay.} Bf4 39. Kf1) 38... Bxd2 $2 {[%emt 0:00:30]} (38... Qg7 $1 $19 {[%csl Gg8][%cal Rg7g2]} 39. Rg1 bxc4 (39... Bd7 $2 40. Qe4 $19) 40. Qxc6 Bxd2 41. Qxc4 Be3) 39. Nxd2 {[%emt 0:00:12] The position is equal.} Qxd2 {[%emt 0:00:31][%csl Gg8][%cal Rd2g2]} 40. Qf6+ $1 {[%emt 0:03:29]} Rg7 {[%emt 0:00:16][%cal Rd2e1]} 41. Qf8+ {[%emt 0:30:12]} Kh7 {[%emt 0:30:07][%cal Rd2e1]} (41... Rg8 $5 42. Qf6+ $8 Rg7 43. Qf8+ Kh7 44. Qf5+ Kh8 45. Qf8+ $11) 42. Qf5+ {[%emt 0:00:10]} Kg8 {[%emt 0:00:15][%cal Rd2e1]} (42... Kh8 $5 43. Qf8+ $8 Rg8 (43... Kh7 44. Qf5+ Kg8 45. Qc8+ Kh7 46. Qf5+ $11) 44. Qf6+ Rg7 45. Qf8+ $11) 43. Qc8+ {[%emt 0:00:13]} Kh7 {[%emt 0:00:15][%cal Rd2e1]} 44. Qf5+ {[%emt 0:00:09]} Kh8 {[%emt 0:02:08][%cal Rd2e1]} (44... Kg8 $5 45. Qc8+ $8 Kh7 46. Qf5+ $11) 45. Qf8+ {[%emt 0:00:21] Weighted Error Value: White=0.32/Black=0.25 (precise) .  Loses game:     	White=2     	---        Missed win:     	---       	Black=2      Mistake:       	White=3     	Black=1      Inaccurate:     	White=3     	Black=4      OK:         	White=6     	Black=9      Best:        	White=6     	Black=5      Strong:       	White=2     	---} 1/2-1/2